Cogmind - Beta 12 @@@ ROGUE MODE // 2024.02.23 @ 09:38:35 Player: Dosh Result: Destroyed by X-67 Chaingunner with Heavy Machine Gun Performance ------------- Evolutions (3) 1500 Regions Visited (11) 2200 Robots Destroyed (189) 945 Value Destroyed (7303) 7303 Prototype IDs (36) 720 Alien Tech Used (0) 0 Bonus (4046) 4046 TOTAL SCORE: 16714 Bonus ------- High Alert Combat Kills 216 Follower Combat Kills 647 Entered Garrisons 600 Used RIF Installer 2500 Aligned with FarCom 300 Friendly Fire -217 Cogmind --------- Core Integrity 0/700 Matter 123/300 Energy 100/100 System Corruption 30% Temperature Cool (0) Movement Core (1350) Ox26 Location -7/Factory Parts ------- > --- POWER (1) -------- (None) > --- PROPULSION (4) --- (None) > --- UTILITY (6) ------ Huge Storage Unit > --- WEAPON (2) ------- (None) > --- INVENTORY (25) --- Heavy Antimatter Reactor Experimental Sensor Array Modified TNC Precision Matter Filter Transmission Jammer Improved Medium Armor Plating Improved Medium Armor Plating Improved Shield Generator Hacking Suite Advanced System Shield Authchip [Device] Relay Coupler [NC] (37) Relay Coupler [Sentry] (28) Relay Coupler [Hunter] (19) Long-range Tractor Beam Trap Reconfigurator AWS/Thermal Heavy Plasma Cannon Long-range Phase Cannon Improved Grenade Launcher Neutron Missile Launcher Remote Datajack Vibroblade Peak State ------------ > --- POWER ------------ Heavy Antimatter Reactor > --- PROPULSION ------- Light Treads Improved Treads Medium Treads Medium Treads > --- UTILITY ---------- Improved Coolant Injector Huge Storage Unit Improved Medium Armor Plating Hacking Suite Relay Coupler [NC] Relay Coupler [Grunt] > --- WEAPON ----------- Long-range Phase Cannon Neutron Missile Launcher > --- INVENTORY -------- Heavy Antimatter Reactor Experimental Sensor Array Modified TNC Precision Matter Filter Transmission Jammer Improved Medium Armor Plating Improved Medium Armor Plating Improved Shield Generator Hacking Suite Advanced System Shield Authchip [Device] Relay Coupler [NC] Relay Coupler [Sentry] Relay Coupler [Hunter] Advanced System Restoration Module Long-range Tractor Beam Trap Reconfigurator AWS/Thermal Heavy Plasma Cannon Long-range Phase Cannon Mass Driver Improved Grenade Launcher Improved Grenade Launcher Remote Datajack [Rating: 66] Favorites ----------- Power Light Deuterium Engine Engine Light Deuterium Engine Power Core Nuclear Core Reactor Heavy Antimatter Reactor Propulsion Light Treads Treads Light Treads Wheel Wheel Utility Hardened Medium Armor Plating Device Improved Coolant Injector Storage Huge Storage Unit Processor Targeting Computer Hackware Hacking Suite Protection Hardened Medium Armor Plating Weapon Enhanced Autogun Energy Gun Heavy EM Shotgun Energy Cannon Heavy Phase Cannon Ballistic Gun Enhanced Autogun Ballistic Cannon Improved Light Cannon Launcher Grenade Launcher Special Weapon Remote Datajack Slashing Weapon Vibroblade Special Melee Weapon Improved Datajack Build | -11 -10 -10 -10 -9 -8 -8 -8 -8 -7 -7 -7 ------- Run | Jun Mat Min Exi Min Mat Gar Mat Gar Fac Gar Fac Slots Evolved 6 | . . . . . 4 . . . 2 . . Power . | . . . . . . . . . . . . Propulsion 2 | . . . . . 1 . . . 1 . . Utility 4 | . . . . . 3 . . . 1 . . Weapon . | . . . . . . . . . . . . Parts Attached 170 | 6 14 . . 5 34 6 10 8 35 19 33 Power 12 | 1 2 . . 1 1 . 1 1 3 . 2 Engine 9 | 1 2 . . 1 . . 1 1 3 . . Core 1 | . . . . . 1 . . . . . . Reactor 2 | . . . . . . . . . . . 2 Propulsion 38 | 2 3 . . 1 10 2 3 . 9 3 5 Treads 36 | 2 2 . . . 10 2 3 . 9 3 5 Leg . | . . . . . . . . . . . . Wheel 2 | . 1 . . 1 . . . . . . . Hover . | . . . . . . . . . . . . Flight . | . . . . . . . . . . . . Utility 64 | 1 3 . . . 11 2 3 3 17 12 12 Device 21 | . . . . . 3 . . 1 7 3 7 Storage 4 | 1 2 . . . . 1 . . . . . Processor 3 | . 1 . . . 1 . 1 . . . . Hackware 10 | . . . . . . . . 1 3 5 1 Protection 26 | . . . . . 7 1 2 1 7 4 4 Artifact . | . . . . . . . . . . . . Weapon 56 | 2 6 . . 3 12 2 3 4 6 4 14 Energy Gun 2 | 1 . . . . 1 . . . . . . Energy Cannon 7 | . . . . . . . . 2 . . 5 Ballistic Gun 23 | 1 4 . . . 6 1 1 . 3 2 5 Ballistic Cannon 7 | . 1 . . 1 2 . 2 1 . . . Launcher 11 | . 1 . . 2 3 1 . 1 1 . 2 Special Weapon 4 | . . . . . . . . . 1 2 1 Impact Weapon . | . . . . . . . . . . . . Slashing Weapon 1 | . . . . . . . . . . . 1 Piercing Weapon . | . . . . . . . . . . . . Special Melee Weapon 1 | . . . . . . . . . 1 . . Unidentified Prototypes 8 | . . . . . 3 . . . . . 5 Corrupted Parts 1 | . . . . . . . . . . . 1 System Corruption 8 | . . . . . . . . . . . 8 Parts Lost 36 | . 3 . . 2 6 2 2 . 4 2 15 Power 5 | . 1 . . 1 . . . . 2 . 1 Propulsion 12 | . 1 . . . 2 1 . . 2 1 5 Utility 11 | . . . . . 3 1 . . . 1 6 Weapon 8 | . 1 . . 1 1 . 2 . . . 3 Highest Loss Streak 8 | . 1 . . 2 2 1 1 . 2 1 8 To Critical Strikes . | . . . . . . . . . . . . Average Slot Usage (%) 97 | . 98 100 100 98 96 98 99 99 97 98 93 Engine 6 | . 13 14 14 12 . . 6 8 6 7 3 Core 2 | . . . . . 8 9 2 . . . . Treads 27 | . 26 28 28 25 25 26 26 27 28 30 27 Device 5 | . . . . . 8 9 3 4 7 4 6 Storage 9 | . 14 14 14 14 9 9 9 9 7 7 7 Processor 7 | . 13 14 14 14 9 9 14 5 . . . Hackware 7 | . . . . . . . . 7 15 18 21 Protection 11 | . . . . . 16 17 18 18 14 12 6 Energy Gun 1 | . 1 . . . 2 9 2 . . . . Energy Cannon 2 | . . . . . . . . 4 7 7 6 Ballistic Gun 10 | . 24 14 14 . 12 8 8 9 5 2 6 Ballistic Cannon 2 | . . 14 14 14 3 . 6 4 . . . Naked Turns . | . . . . . . . . . . . . Heaviest Build 128 | 12 52 52 52 52 68 103 108 115 120 120 128 Greatest Support 102 | 40 40 40 40 40 60 60 62 62 96 96 102 Greatest Overweight (x) 36 | . 4 1 1 5 5 2 1 1 2 1 36 Average Overweight (x) 1 | . 1 1 1 1 1 . 1 1 1 1 1 Largest Inventory Capacity 25 | 8 20 20 20 20 20 25 25 25 25 25 25 Average Capacity 22 | 6 18 20 20 20 20 20 25 25 25 25 25 Most Carried 25 | 2 16 14 18 18 20 22 25 25 25 25 25 Average Carried 20 | . 7 13 15 17 19 20 24 24 23 24 24 Final Capacity 25 | 8 20 20 20 20 20 25 25 25 25 25 25 Final Carried 25 | 2 12 14 18 16 20 21 25 25 25 24 24 Class Distribution -------------------- 46% | Mutant 38% | Bothacker-Mutant 15% | Scavenger-Mutant Dominant Class ---------------- Mutant | -10/Materials Mutant | -10/Mines Mutant | -10/Exiles Mutant | -9/Mines Mutant | -8/Materials Scavenger-Mutant | -8/Garrison Mutant | -8/Materials Mutant | -8/Garrison Bothacker-Mutant | -7/Factory Bothacker-Mutant | -7/Garrison Bothacker-Mutant | -7/Factory Resources | -11 -10 -10 -10 -9 -8 -8 -8 -8 -7 -7 -7 ----------- Run | Jun Mat Min Exi Min Mat Gar Mat Gar Fac Gar Fac Matter Collected 4568 | 178 589 6 . 92 1430 206 395 109 655 430 478 Remotely . | . . . . . . . . . . . . Salvage Created 6521 | . 929 . . 293 1772 552 588 256 1087 333 711 Parts 433 | . 68 . . 22 125 39 41 24 55 14 45 Haulers Intercepted 11 | . 2 . . . 5 . 4 . . . . Recyclers Shooed 8 | . . . . . 2 . 1 . 4 . 1 Parts Field Recycled . | . . . . . . . . . . . . Retrieved Matter . | . . . . . . . . . . . . Parts Self-Destructed . | . . . . . . . . . . . . Prevented . | . . . . . . . . . . . . Kills | -11 -10 -10 -10 -9 -8 -8 -8 -8 -7 -7 -7 ------- Run | Jun Mat Min Exi Min Mat Gar Mat Gar Fac Gar Fac Combat Hostiles Destroyed 146 | . 22 . . 19 34 16 8 9 18 6 14 Guns 81 | . 22 . . . 25 12 4 4 6 2 6 Cannons 22 | . . . . 1 2 . 3 1 8 3 4 AOE 42 | . . . . 18 7 4 1 4 4 . 4 Classes Destroyed 18 | . 6 . . 4 5 . . 2 . 1 . Worker 12 | . 1 . . 1 3 . 1 . 3 . 3 Builder 7 | . . . . 1 1 . 1 . 2 . 2 Tunneler 2 | . . . . . 1 . . . 1 . . Hauler 11 | . 2 . . . 5 . 4 . . . . Recycler 8 | . . . . 1 2 . . . 4 . 1 Operator 5 | . 2 . . . 2 . 1 . . . . Watcher 7 | . 2 . . . 3 . 2 . . . . Swarmer 35 | . 6 . . 4 4 7 2 4 4 . 4 Cutter 8 | . . . . . 4 . . . . . 4 Grunt 52 | . 16 . . 4 16 5 2 . 6 1 2 Brawler 2 | . . . . . . . . 1 . . 1 Duelist 5 | . . . . . 1 1 . 1 1 . 1 Sentry 17 | . . . . . 7 3 2 2 . 2 1 Specialist 2 | . . . . . . . . . . 2 . Hunter 6 | . . . . . 2 . 2 . 2 . . Programmer 9 | . . . . . . . . 1 5 1 2 Zionite 1 | . . . . 1 . . . . . . . Assembled 11 | . . . . 11 . . . . . . . Best Kill Streak 11 | . 3 . . 11 6 4 2 4 5 2 6 Combat Bots Only 11 | . 3 . . 11 5 4 2 4 4 2 4 Max Kills in Single Turn 4 | . 1 . . 2 3 2 1 4 4 1 3 Gunslinging . | . . . . . . . . . . . . Exploded 4 | . . . . 2 2 2 1 4 3 . 2 Melee . | . . . . . . . . . . . . Uniques/NPCs Destroyed . | . . . . . . . . . . . . Combat | -11 -10 -10 -10 -9 -8 -8 -8 -8 -7 -7 -7 -------- Run | Jun Mat Min Exi Min Mat Gar Mat Gar Fac Gar Fac Damage Taken 9260 | . 704 . . 433 1730 678 519 43 1335 1046 2772 Core 1153 | . 127 . . 64 157 70 20 . 35 88 592 Absorbed by Shields 82 | . . . . . . . . . . 82 . Regen/Repaired (Parts) 858 | . 231 . . . . . 160 . 279 . 188 Core Remaining (%) 59 | 100 . . . 23 . . . 55 . . . Volleys Fired 599 | . 106 . . 22 127 39 48 20 80 59 98 Largest 2 | . 2 . . 2 2 2 2 2 2 2 2 Hottest 130 | . 60 . . 69 75 86 75 90 115 115 130 Shots Fired 1044 | . 197 . . 24 242 76 96 34 118 86 171 Gun 713 | . 195 . . . 196 74 66 14 68 27 73 Cannon 277 | . . . . 3 36 . 30 19 47 48 94 Launcher 40 | . 2 . . 21 10 2 . 1 2 . 2 Special 14 | . . . . . . . . . 1 11 2 Kinetic 704 | . 174 . . 3 218 35 78 28 68 27 73 Thermal 194 | . . . . . . . . 5 47 48 94 Explosive 40 | . 2 . . 21 10 2 . 1 2 . 2 Electromagnetic 92 | . 21 . . . 14 39 18 . . . . Robot Hit Streak 46 | . 28 . . 8 46 11 13 8 15 14 7 Robot Miss Streak 4 | . 4 . . 2 4 3 4 2 3 2 3 Penetration Max . | . . . . . . . . . . . . Secondary Targets 3 | . 1 . . . 1 1 . . . . . Max Gunslinging Chain 1 | . 1 . . . 1 1 . . . . . Shots Hit Robots 600 | . 128 . . 14 165 46 61 13 78 55 40 Core Hits 322 | . 51 . . 43 83 27 29 12 38 10 29 Critical Kills 2 | . . . . . . 1 . . . 1 . Critical Parts Destroyed 2 | . 1 . . . . . . . 1 . . Critical Strikes 10 | . 3 . . . 1 1 3 . 1 1 . Meltdown 1 | . . . . . . . . . . 1 . Destroy 3 | . 1 . . . . 1 . . 1 . . Blast 4 | . . . . . 1 . 3 . . . . Corrupt 2 | . 2 . . . . . . . . . . Melee Attacks 3 | . . . . . . . . . 3 . . Impact . | . . . . . . . . . . . . Slashing . | . . . . . . . . . . . . Piercing . | . . . . . . . . . . . . Sneak Attacks . | . . . . . . . . . . . . Combat Hostiles . | . . . . . . . . . . . . Follow-up Attacks . | . . . . . . . . . . . . Damage Inflicted 15569 | . 1423 16 . 1294 4162 1155 1313 455 2505 1410 1836 Guns 6962 | . 1419 . . . 2443 737 743 148 764 345 363 Cannons 4056 | . . . . 20 594 . 355 101 1110 1063 813 Explosions 4296 | . . . . 1273 1102 418 125 206 585 . 587 Melee . | . . . . . . . . . . . . Ramming 255 | . 4 16 . 1 23 . 90 . 46 2 73 Kinetic 6767 | . 1225 . . 20 2720 260 821 249 764 345 363 Thermal 3742 | . . . . . 230 143 125 . 1110 1063 1071 Explosive 3458 | . . . . 1273 872 275 . 206 585 . 247 Electromagnetic 1347 | . 194 . . . 317 477 277 . . . 82 Impact . | . . . . . . . . . . . . Slashing . | . . . . . . . . . . . . Piercing . | . . . . . . . . . . . . Highest Corruption 30 | . . . . . . . . 1 1 . 30 Average Corruption 5 | . . . . . . . . 1 1 . 9 Corruption Purged 10 | . . . . . . . . . 2 . 8 Corruption Blocked . | . . . . . . . . . . . . Effects 53 | . . . . . . . . 4 5 . 44 Message Errors 10 | . . . . . . . . . 2 . 8 Matter Fused 14 | . . . . . . . . 1 2 . 11 Heat Flow Errors 8 | . . . . . . . . . 1 . 7 Energy Discharges 2 | . . . . . . . . . . . 2 Parts Rejected 1 | . . . . . . . . 1 . . . Parts Fused 2 | . . . . . . . . . . . 2 Data Loss (minor) 6 | . . . . . . . . 2 . . 4 Data Loss (major) 2 | . . . . . . . . . . . 2 Misfires 4 | . . . . . . . . . . . 4 Alerts 1 | . . . . . . . . . . . 1 Weapon Failures 3 | . . . . . . . . . . . 3 Overload Shots . | . . . . . . . . . . . . Overflow Damage 454 | . . . . 78 22 2 . 16 114 42 180 Projectiles 106 | . . . . . . . . . 27 42 37 Explosions 348 | . . . . 78 22 2 . 16 87 . 143 Melee . | . . . . . . . . . . . . Knockbacks 7 | . . . . . 2 . 3 . 1 . 1 Impact 4 | . . . . . . . 2 . 1 . 1 Kinetic 3 | . . . . . 2 . 1 . . . . Secondary . | . . . . . . . . . . . . Self-Inflicted Damage 760 | . 7 . . 102 133 91 96 5 . . 326 Shots 19 | . 1 . . 4 3 3 2 1 . . 5 Rammed 29 | . 2 3 . 1 3 . 8 . 2 2 8 Targets Rammed 34 | . 2 3 . 1 4 . 9 . 4 2 9 Kicked . | . . . . . . . . . . . . Crushed 5 | . . . . . 1 . 1 . 2 . 1 Highest Temperature 435 | . 54 . . 18 358 62 329 139 426 422 435 Average Temperature 83 | . 17 . . 8 71 19 73 46 93 115 110 Received Heat Transfer 1866 | . 309 . . 98 513 144 162 . 387 199 54 Effects 6 | . . . . . . . . . 3 2 1 Shutdowns 1 | . . . . . . . . . . 1 . Energy Bleed 2 | . . . . . . . . . 2 . . Interference 1 | . . . . . . . . . . . 1 Short Circuit 1 | . . . . . . . . . . 1 . Damage (minor) 1 | . . . . . . . . . 1 . . Siege Activations . | . . . . . . . . . . . . Robots Corrupted . | . . . . . . . . . . . . Combat Hostiles . | . . . . . . . . . . . . Parts Fried 1 | . . . . . . . 1 . . . . Impact Corruptions . | . . . . . . . . . . . . Robots Melted 1 | . . . . . . . . . . 1 . Combat Hostiles 1 | . . . . . . . . . . 1 . Parts Melted 13 | . . . . . . 1 . . 2 9 1 Heat Transferred 3773 | . . . . . 150 200 100 . 1073 1054 1196 Parts Sabotaged . | . . . . . . . . . . . . Parts Stolen . | . . . . . . . . . . . . Parts Stripped . | . . . . . . . . . . . . Power Chain Reactions 6 | . . . . . 1 2 3 . . . . Missiles Intercepted . | . . . . . . . . . . . . Alert | -11 -10 -10 -10 -9 -8 -8 -8 -8 -7 -7 -7 ------- Run | Jun Mat Min Exi Min Mat Gar Mat Gar Fac Gar Fac Peak Influence 840 | . 402 74 . 254 466 840 532 411 225 835 730 Initial 438 | . . 34 . . 98 290 409 57 215 91 438 Average 228 | . 210 33 . 217 239 528 219 172 84 452 264 Maximum Alert Level 3 | . 2 . . 1 2 3 2 2 1 3 3 Low Security (%) 49 | 100 41 100 . 15 34 . 47 83 88 16 43 Level 1 37 | . 58 . . 84 60 28 40 11 11 32 32 Level 2 9 | . . . . . 5 42 12 4 . 26 20 Level 3 3 | . . . . . . 28 . . . 24 3 Level 4 . | . . . . . . . . . . . . Level 5 . | . . . . . . . . . . . . High Security . | . . . . . . . . . . . . Max Security . | . . . . . . . . . . . . Squads Dispatched 36 | . 6 . . 1 5 . 2 . 11 . 11 Investigation 9 | . 4 . . . 1 . . . 3 . 1 Extermination 10 | . . . . . . . . . 7 . 3 Reinforcement 14 | . 2 . . 1 3 . 2 . 1 . 5 Assault 3 | . . . . . 1 . . . . . 2 Garrison . | . . . . . . . . . . . . Intercept . | . . . . . . . . . . . . Searches Triggered . | . . . . . . . . . . . . Construction Impeded 2 | . . . . 1 . . . . . . 1 Haulers Reinforced 1 | . . . . . . . . . . . 1 Active Scanning Responses . | . . . . . . . . . . . . Cargo Convoy Interrupts 1 | . . . . . . . . . . . 1 Stealth | -11 -10 -10 -10 -9 -8 -8 -8 -8 -7 -7 -7 --------- Run | Jun Mat Min Exi Min Mat Gar Mat Gar Fac Gar Fac Distress Signals 16 | . 3 . . 1 5 . 2 . . 5 . Communications Jammed . | . . . . . . . . . . . . Distress Signals . | . . . . . . . . . . . . Times Spotted 265 | . 40 1 . 20 53 19 26 7 27 44 28 Peak Tracking Total 10 | . 5 . . 5 10 7 3 4 5 5 5 Tactical Retreats 20 | . 3 . . 1 8 2 4 . . 1 1 Traps | -11 -10 -10 -10 -9 -8 -8 -8 -8 -7 -7 -7 ------- Run | Jun Mat Min Exi Min Mat Gar Mat Gar Fac Gar Fac Traps Triggered 15 | . 2 . . . 1 1 . 1 1 9 . Indirectly . | . . . . . . . . . . . . Trap Hack Attempts . | . . . . . . . . . . . . Triggered . | . . . . . . . . . . . . Disarmed 3 | . . . . . 3 . . . . . . Reprogrammed . | . . . . . . . . . . . . Reused 3 | . . . . . . . . . . . 3 Traps Reconfigurated 14 | . . . . . . . . . 3 . 11 Traps Extracted . | . . . . . . . . . . . . Installed . | . . . . . . . . . . . . Triggered 6 | . . . . . . . 1 . . . 5 Exploded 1 | . . . 1 . . . . . . . . Machines | -11 -10 -10 -10 -9 -8 -8 -8 -8 -7 -7 -7 ---------- Run | Jun Mat Min Exi Min Mat Gar Mat Gar Fac Gar Fac Machines Disabled 42 | . . . . . 4 2 1 2 . 5 28 Max in Single Turn 17 | . . . . . 2 1 1 1 . 1 17 Garrison Access 1 | . . . . . . . . . . . 1 Garrison Relay 8 | . . . . . . 1 . 2 . 5 . Machines Repaired . | . . . . . . . . . . . . Machines Sabotaged . | . . . . . . . . . . . . Overloaded Fab Kills . | . . . . . . . . . . . . Hacking | -11 -10 -10 -10 -9 -8 -8 -8 -8 -7 -7 -7 --------- Run | Jun Mat Min Exi Min Mat Gar Mat Gar Fac Gar Fac Machines Accessed 61 | . 7 . 2 . 12 1 10 3 14 2 10 Terminals 37 | . 4 . . . 9 1 7 3 6 2 5 Fabricators 4 | . . . . . . . . . 2 . 2 Repair Stations 7 | . 1 . . . 1 . 1 . 2 . 2 Recycling Units 3 | . 2 . . . . . 1 . . . . Scanalyzers 5 | . . . . . 1 . . . 3 . 1 Garrison Access 3 | . . . . . 1 . 1 . 1 . . Total Hacks 157 | . 21 . 2 . 39 2 22 5 36 4 26 Successful 86 | . 13 . 2 . 17 . 14 2 21 1 16 Failed 70 | . 8 . . . 21 2 8 3 15 3 10 Catastrophic 14 | . 2 . . . 3 1 3 2 1 . 2 Database Lockouts 1 | . . . . . 1 . . . . . . Manual 62 | . 12 . 1 . 25 . 11 . 10 . 3 Terminals 91 | . 10 . . . 32 2 13 5 12 4 13 Fabricators 9 | . . . . . . . . . 5 . 4 Repair Stations 33 | . 8 . . . 3 . 6 . 10 . 6 Recycling Units 5 | . 3 . . . . . 2 . . . . Scanalyzers 14 | . . . . . 3 . . . 8 . 3 Garrison Access 3 | . . . . . 1 . 1 . 1 . . Terminal Hacks 32 | . 4 . 2 . 10 . 5 2 4 1 4 Record 1 | . . . 1 . . . . . . . . Part Schematic 1 | . 1 . . . . . . . . . . Robot Schematic 1 | . 1 . . . . . . . . . . Robot Analysis 7 | . 2 . . . 4 . . . 1 . . Prototype ID Bank 3 | . . . . . 1 . 2 . . . . Branch Access Points 1 | . . . . . . . . . 1 . . Emergency Access Points 2 | . . . . . . . . 1 . 1 . Machine Index 2 | . . . . . . . . . 1 . 1 Repair Station Index 1 | . . . . . . . . . . . 1 Alert Level 1 | . . . . . 1 . . . . . . Unreport Threat 5 | . . . . . 2 . 1 . . . 2 Locate Traps 2 | . . . . . 1 . 1 . . . . Disarm Traps 1 | . . . . . 1 . . . . . . Hauler Manifests 2 | . . . . . . . 1 . 1 . . Garrison Registry 1 | . . . . . . . . 1 . . . EX-Prototype ID Bank 1 | . . . 1 . . . . . . . . Fabricator Hacks 4 | . . . . . . . . . 1 . 3 Network Status 2 | . . . . . . . . . 1 . 1 Build 2 | . . . . . . . . . . . 2 Repair Station Hacks 27 | . 6 . . . 1 . 6 . 9 . 5 Scan Component 15 | . 3 . . . 1 . 3 . 5 . 3 Repair 12 | . 3 . . . . . 3 . 4 . 2 Recycling Unit Hacks 1 | . . . . . . . 1 . . . . Retrieve Components 1 | . . . . . . . 1 . . . . Scanalyzer 7 | . . . . . 2 . . . 3 . 2 Insert Component 4 | . . . . . 1 . . . 2 . 1 Analyze 3 | . . . . . 1 . . . 1 . 1 Garrison Access Hacks 3 | . . . . . 1 . 1 . 1 . . Unlock Access 3 | . . . . . 1 . 1 . 1 . . Unauthorized Hacks 12 | . 3 . . . 3 . 1 . 3 . 2 Terminals 9 | . 1 . . . 3 . 1 . 2 . 2 Assimilate 1 | . . . . . . . . . . . 1 Botnet 7 | . 1 . . . 2 . 1 . 2 . 1 Operators 1 | . . . . . 1 . . . . . . Fabricators 1 | . . . . . . . . . 1 . . Recompile 1 | . . . . . . . . . 1 . . Repair Stations . | . . . . . . . . . . . . Recycling Units 2 | . 2 . . . . . . . . . . Tunnel 2 | . 2 . . . . . . . . . . Scanalyzers . | . . . . . . . . . . . . Garrison Access . | . . . . . . . . . . . . Data Cores Recovered . | . . . . . . . . . . . . Used . | . . . . . . . . . . . . Hacking Detections 44 | . 5 . . . 10 1 6 2 9 2 9 Full Trace Events 6 | . 1 . . . 1 1 . . 2 . 1 Feedback Events 1 | . . . . . . . . . 1 . . Corruption 1 | . . . . . . . . . 1 . . Feedback Blocked . | . . . . . . . . . . . . Robot Schematics Acquired 1 | . 1 . . . . . . . . . . Robots Built 1 | . . . . . . . . . . . 1 Authchips . | . . . . . . . . . . . . Time 40 | . . . . . . . . . . . 40 Total Robot Build Rating 1 | . . . . . . . . . . . 1 Part Schematics Acquired 1 | . 1 . . . . . . . . . . Parts Built 2 | . . . . . . . . . . . 2 Authchips . | . . . . . . . . . . . . Time 95 | . . . . . . . . . . . 95 Total Part Build Rating 10 | . . . . . . . . . . . 10 Parts Repaired 12 | . 3 . . . . . 3 . 4 . 2 Time 644 | . 78 . . . . . 234 . 256 . 76 Parts Recycled . | . . . . . . . . . . . . Recycled Matter . | . . . . . . . . . . . . Retrieved Matter . | . . . . . . . . . . . . Retrieved Components 3 | . . . . . . . 3 . . . . Parts Scanalyzed 2 | . . . . . 1 . . . 1 . . Part Schematics Acquired . | . . . . . . . . . . . . Parts Damaged . | . . . . . . . . . . . . Bothacking | -11 -10 -10 -10 -9 -8 -8 -8 -8 -7 -7 -7 ------------ Run | Jun Mat Min Exi Min Mat Gar Mat Gar Fac Gar Fac Used RIF Installer 5 | . . . . . . 2 . 2 . 1 . Coupler Efficiency 1 | . . . . . . 1 . . . . . Robot Detection 1 | . . . . . . . . . . 1 . Watcher Feeds 1 | . . . . . . . . 1 . . . Program Shield 1 | . . . . . . . . 1 . . . Robots Hacked 15 | . . . . . . . . . 4 9 2 Non-combat . | . . . . . . . . . . . . Combat 15 | . . . . . . . . . 4 9 2 Robot Hacks Applied 15 | . . . . . . . . . 4 9 2 streamctrl_high 2 | . . . . . . . . . 2 . . formatsys_high 13 | . . . . . . . . . 2 9 2 Relay Couplers Released 38 | . . . . . . 5 . 11 . 22 . Machine Destruction 35 | . . . . . . 5 . 8 . 22 . Programmers 3 | . . . . . . . . 3 . . . Attached 9 | . . . . . . . . . 3 5 1 Fabnet Peak Effective % . | . . . . . . . . . . . . Robots Rewired 3 | . . . . . . . . . . 3 . Allies Hacked . | . . . . . . . . . . . . Hacks Repelled . | . . . . . . . . . . . . Allies | -11 -10 -10 -10 -9 -8 -8 -8 -8 -7 -7 -7 -------- Run | Jun Mat Min Exi Min Mat Gar Mat Gar Fac Gar Fac Total Allies 21 | . . 1 . . . . . . 4 12 4 Largest Group 4 | . . 1 1 . . . . . 2 4 4 Highest-Rated Group 112 | . . 31 31 . . . . . 45 112 69 Highest-Rated Ally 32 | . . 31 31 . . . . . 32 32 26 Total Orders . | . . . . . . . . . . . . Ally Attacks 122 | . . 7 . . . . . . 10 51 54 Total Damage 2138 | . . 106 . . . . . . 127 1356 549 Kills 24 | . . 3 . . . . . . 1 15 5 Allies Corrupted . | . . . . . . . . . . . . Allies Melted . | . . . . . . . . . . . . Intel | -11 -10 -10 -10 -9 -8 -8 -8 -8 -7 -7 -7 ------- Run | Jun Mat Min Exi Min Mat Gar Mat Gar Fac Gar Fac Robot Analysis Total 7 | . 2 . . . 4 . . . 1 . . Derelict Logs Recovered 1 | . . . . 1 . . . . . . . Drone Launches . | . . . . . . . . . . . . Drone Recoveries . | . . . . . . . . . . . . Exploration | -11 -10 -10 -10 -9 -8 -8 -8 -8 -7 -7 -7 ------------- Run | Jun Mat Min Exi Min Mat Gar Mat Gar Fac Gar Fac Turns Passed 21175 | 66 2807 593 524 355 3624 859 3230 955 3509 1589 3064 Spaces Moved 7550 | 37 1003 244 218 135 1285 283 1167 372 1201 580 1025 Core 8 | 3 . . . . . . . . . . 5 Treads 7363 | 34 881 244 218 106 1257 283 1167 372 1201 580 1020 Legs . | . . . . . . . . . . . . Wheels 179 | . 122 . . 29 28 . . . . . . Hover . | . . . . . . . . . . . . Flight . | . . . . . . . . . . . . Fastest Speed 50 | 50 140 240 240 140 155 160 235 235 235 235 160 Average Speed 234 | 151 212 240 240 221 239 236 237 235 235 235 248 Slowest Speed 1850 | 160 320 240 240 240 320 320 240 235 312 236 1850 Overloaded Moves . | . . . . . . . . . . . . Propulsion Burnouts . | . . . . . . . . . . . . Robots Hopped . | . . . . . . . . . . . . Cave-ins Triggered 4 | . . . . . . . . . . . 4 Exploration Rate (%) 55 | 5 97 56 60 32 87 43 66 61 33 88 39 Regions Visited 11 Branch Regions 3 Pre-discovered Areas 3 | . 2 . 1 . . . . . . . . Known Exits Taken 3 | . . . . . 1 . 1 . 1 . . Unknown Exits Taken 5 | 1 1 1 1 1 . . . . . . . Scrap Searched 1 | . . . . 1 . . . . . . . Spaces Dug 64 | . 13 . . . 3 . . . 9 . 39 Terrain Destroyed 455 | . 13 . . 92 92 18 18 7 26 2 187 Melee . | . . . . . . . . . . . . Projectile 93 | . . . . . 3 . 1 . 18 2 69 AOE 362 | . 13 . . 92 89 18 17 7 8 . 118 Terrain Rammed . | . . . . . . . . . . . . Walls Destroyed . | . . . . . . . . . . . . Machines Disabled . | . . . . . . . . . . . . Actions | -11 -10 -10 -10 -9 -8 -8 -8 -8 -7 -7 -7 --------- Run | Jun Mat Min Exi Min Mat Gar Mat Gar Fac Gar Fac Total 10059 | 44 1490 248 220 164 1650 410 1544 428 1774 730 1357 Wait 1499 | . 344 . . . 161 80 291 10 433 12 168 Move 7540 | 36 1002 243 217 134 1285 282 1167 371 1201 579 1023 Hop . | . . . . . . . . . . . . Pick Up 91 | 2 12 2 3 1 19 2 10 8 10 11 11 Fast Attach 47 | 6 9 . . . 11 1 3 2 6 1 8 Attach 31 | . 2 . . 2 5 1 2 . 6 5 8 Detach 14 | . 4 . . . 2 . . 1 . 4 3 Swap 92 | . 3 . . 3 18 4 5 6 23 13 17 Drop 67 | . 6 . . 1 18 1 9 8 8 6 10 Fire 599 | . 106 . . 22 127 39 48 20 80 59 98 Melee 3 | . . . . . . . . . 3 . . Ram 3 | . 1 . . . . . . . . . 2 Kick . | . . . . . . . . . . . . Crush 31 | . 1 3 . 1 4 . 9 . 4 2 7 Escape Stasis 17 | . . . . . . . . 2 . 13 2 Rewire 25 | . . . . . . . . . . 25 . Trap . | . . . . . . . . . . . . Miscellaneous . | . . . . . . . . . . . . Route ------- -11/Junkyard -10/Materials (discovered 4 exits: [*Mat x3] / [*Min]) -10/Mines (discovered 2 exits: [*Mat] / *Exi) -10/Exiles -9/Mines -8/Materials (discovered 4 exits: *Fac x3 / Gar) -8/Garrison -8/Materials (discovered 2 exits: *Fac / Gar) -8/Garrison (discovered 3 exits: *Fac x3) -7/Factory (discovered 6 exits: [*Fac] / Sto x2 / *Low x2 / Gar) -7/Garrison (discovered 3 exits: [*Fac x2] / *Fac) -7/Factory (discovered 2 exits: [*Fac x2]) History --------- Turn | Location | Event 31 | -11/Junkyard | Discovered new exit (range 16) 67 | -11/Junkyard | Entered Materials 301 | -10/Materials | Build established: Mutant 651 | -10/Materials | Discovered new exit (range 14) 908 | -10/Materials | Discovered new exit (range 10) 1097 | -10/Materials | Repaired Lgt. Treads 1125 | -10/Materials | Repaired Assault Rifle 1152 | -10/Materials | Repaired Ion Engine 1325 | -10/Materials | Discovered new exit (range 13) 2595 | -10/Materials | Core integrity fell below 50% 2609 | -10/Materials | Discovered new exit (range 10) 2874 | -10/Materials | Entered Mines 2911 | -10/Mines | Found a damaged Exp. Sensor Array with a note attached 2916 | -10/Mines | Found Prototype Device 2932 | -10/Mines | Discovered new exit (range 7) 3155 | -10/Mines | Found a hidden stash of uninstalled traps 3285 | -10/Mines | Received a Mining Laser from a helpful Derelict 3455 | -10/Mines | Deemed a non-threat by the Exiles lab entrance 3457 | -10/Mines | Discovered new exit (range 5) 3467 | -10/Mines | Entered Exiles 3467 | -10/Exiles | Accompanied by 1 ally 3532 | -10/Exiles | Met 8R-AWN 3568 | -10/Exiles | Met EX-HEX 3631 | -10/Exiles | Met EX-BIN 3664 | -10/Exiles | Aligned with FarCom system 3667 | -10/Exiles | Given EX-Vault access code 3724 | -10/Exiles | Opened EX-Vault 3739 | -10/Exiles | Found AWS/Thermal 3744 | -10/Exiles | Found Trap Reconfigurator 3750 | -10/Exiles | Found Modified TNC 3804 | -10/Exiles | Warned to stay clear of 0b10 Research branches 3824 | -10/Exiles | Exiles lab attacked by MAIN.C 3895 | -10/Exiles | Learned location of Zion (-6) 3970 | -10/Exiles | Discovered new exit (range 10) 3991 | -10/Exiles | Stole three prototypes: Modified TNC, Trap Reconfigurator, AWS/Thermal 3991 | -10/Exiles | Entered Mines 4047 | -9/Mines | Discovered new exit (range 14) 4241 | -9/Mines | Assembled infested the area 4246 | -9/Mines | Assisted by a Guerilla fighting off Assembled 4319 | -9/Mines | Destroyed 11 combat bots 4346 | -9/Mines | Entered Materials 4346 | -8/Materials | Evolved 4 slots: Propulsion x1, Utility x3 4370 | -8/Materials | Identified Exp. Sensor Array 4763 | -8/Materials | Central database locked down 5084 | -8/Materials | Discovered new exit (range 13) 6137 | -8/Materials | Discovered new exit (range 10) 7089 | -8/Materials | Build established: Scavenger-Mutant 7510 | -8/Materials | Discovered new exit (range 3) 7946 | -8/Materials | First assault squad dispatched 7970 | -8/Materials | Identified exit to Garrison 7970 | -8/Materials | Entered Garrison 8010 | -8/Garrison | Triggered checkpoint 8102 | -8/Garrison | Installed Relay Interface Framework 8256 | -8/Garrison | Expanded RIF knowledge: Coupler Efficiency 8582 | -8/Garrison | Triggered checkpoint 8650 | -8/Garrison | Triggered checkpoint 8691 | -8/Garrison | Garrison Relay disabled 8755 | -8/Garrison | Discovered new exit (range 12) 8829 | -8/Garrison | Entered Materials 9435 | -8/Materials | Discovered new exit (range 11) 10352 | -8/Materials | Build established: Mutant 11764 | -8/Materials | Repaired Broken Exp. Sensor Array 11825 | -8/Materials | Repaired Enh. Autogun 11864 | -8/Materials | Repaired Adv. Treads 12059 | -8/Materials | Identified exit to Garrison 12059 | -8/Materials | Entered Garrison 12128 | -8/Garrison | Expanded RIF knowledge: Program Shield 12193 | -8/Garrison | Discovered new exit (range 49) 12193 | -8/Garrison | Discovered new exit (range 47) 12193 | -8/Garrison | Discovered new exit (range 57) 12200 | -8/Garrison | Triggered checkpoint 12354 | -8/Garrison | Triggered checkpoint 12667 | -8/Garrison | Expanded RIF knowledge: Watcher Feeds 12893 | -8/Garrison | Garrison Relay disabled 12967 | -8/Garrison | Garrison Relay disabled 13014 | -8/Garrison | Entered Factory 13014 | -7/Factory | Evolved 2 slots: Propulsion x1, Utility x1 13015 | -7/Factory | Identified exit to Storage 13016 | -7/Factory | FarCom data flow suspended 13169 | -7/Factory | Build established: Bothacker-Mutant 13454 | -7/Factory | Identified exit to Lower Caves 14541 | -7/Factory | Repaired Broken Exp. Sensor Array 14580 | -7/Factory | Repaired Adv. Treads 14608 | -7/Factory | Repaired Lgt. Treads 14736 | -7/Factory | Repaired Imp. Coolant Injector? 16240 | -7/Factory | Discovered new exit (range 10) 16523 | -7/Factory | Identified exit to Garrison 16523 | -7/Factory | Entered Garrison 16523 | -7/Garrison | Accompanied by 1 ally 16564 | -7/Garrison | Triggered checkpoint 16606 | -7/Garrison | Discovered new exit (range 6) 16682 | -7/Garrison | Triggered checkpoint 16720 | -7/Garrison | Garrison Relay disabled 16830 | -7/Garrison | Garrison Relay disabled 16970 | -7/Garrison | Triggered checkpoint 17008 | -7/Garrison | Triggered checkpoint 17114 | -7/Garrison | Discovered new exit (range 14) 17304 | -7/Garrison | Garrison Relay disabled 17494 | -7/Garrison | Discovered new exit (range 34) 17524 | -7/Garrison | Triggered checkpoint 17558 | -7/Garrison | Garrison Relay disabled 17768 | -7/Garrison | Triggered checkpoint 17823 | -7/Garrison | Expanded RIF knowledge: Robot Detection 17868 | -7/Garrison | Garrison Relay disabled 18112 | -7/Garrison | Entered Factory 18112 | -7/Factory | Accompanied by 4 allies 18704 | -7/Factory | Fabricated Hvy. Plasma Cannon? 19134 | -7/Factory | Cargo convoy interrupted 19497 | -7/Factory | Repaired Med. Treads 19530 | -7/Factory | Repaired Imp. Treads 19622 | -7/Factory | Fabricated R-06 Scavenger (x1) 19918 | -7/Factory | System corruption reached 10% 20040 | -7/Factory | Found Prototype Slashing Weapon 20041 | -7/Factory | Identified Vibroblade 20254 | -7/Factory | Discovered new exit (range 23) 20912 | -7/Factory | First assault squad dispatched 21016 | -7/Factory | Crushed by falling debris 21021 | -7/Factory | Crushed by falling debris 21024 | -7/Factory | Crushed by falling debris 21024 | -7/Factory | Core integrity fell below 50% 21037 | -7/Factory | Crushed by falling debris 21038 | -7/Factory | System corruption reached 30% 21068 | -7/Factory | Lost 8 parts (2n5u1w) 21144 | -7/Factory | Discovered new exit (range 15) 21163 | -7/Factory | Core integrity fell below 20% 21176 | -7/Factory | Destroyed by X-67 Chaingunner with Heavy Machine Gun Last Messages --------------- 21041_ JWMLNXIP0X8TWWOS1RKN5Q|BX/QI|QKKHR1F 21050_ U-05 Engineer builds a Wall. 21063_ System corrupted: Matter fused (-9). 21071_ The unstable cave ceiling collapses. 21081_ System corrupted: Energy discharge (-115). 21096_ System corrupted: Hvy. Antimatter Reactor fused. 21100_ ALERT: Suspicious intruders detected, dispatching Specialist reinforcements to area. 21111_ System corrupted: Matter fused (-6). 21120_ The unstable cave ceiling collapses. 21126_ System corrupted: Matter fused (-8). 21126_ U-05 Engineer builds a Wall. 21144_ System corrupted: Heat flow error (+219). 21144_ Slammed into X-67 Chaingunner. 21144_ EXIT=FOUND 21159_ System corrupted: Energy discharge (-95). 21160_ Lrn. Phase Cannon destroyed. 21163_ Slammed into X-67 Chaingunner. 21167_ Hvy. Antimatter Reactor destroyed. 21174_ System corrupted: Matter fused (-7). Map ----- +----------------------------------------------------+ | #???????????????????????????????????????????? | | """" #???????????????????????????????????????????? | | """" #???????????????????????????????????????????? | | "" ##??????????????????????????????????????????? | | "#??????????????????????????????????????????? | | ####""##?????????????????????????????????????????? | | ???## ##????????????????????????????????????????? | | ????## ##???????????????????????????????????????? | | ?????## ##??????????????????????????????????????? | | ??????### ##?????????????????????????????????????? | | ????????## ##????????????????????????????????????? | | ?????????## ##???????????????????????????????????? | | ??????????## ##??????????????????????????????????? | | ???????????## ##?????????????????????????????????? | | ????????????## ##????????????????????????????????? | | ?????????????#####???????????????????????????????? | | ??????????????# ##??????????????????????????????? | | ??????????????#######????????????????????????????? | | ????????????????### #????????????????????????????? | | ?????????????????## ##???????????????????????????? | | ??????????????????#####??????????????????????????? | | ???????????????????# ##?????????????????????????? | | ???????????????????### ##????????????????????????? | | ?????????????????????####????????????????????????? | | ???????????"" ##################???????????????? | | ???????????""" + @x < ????????? | | ???????????""" ######## ##### ###???????????????? | | ???????????????????????# #???????????????????????? | | ???????????????????????# #???????????????????????? | | ???????????????????????# #???????????????????????? | | ???????????????????????# #????H??????????????????? | | ???????????????????????#+#???????????????????????? | | ??????????????????????? ???????????????????????? | | ??????????????????????? ???????????????????????? | | ??????????????????????? ???????????????????????? | | ??????????????????????? ???????????????????????? | | ??????????????????????? ???????????????????????? | | ??????????????????????? ????H??????????????????? | | ??????????????????????? ???????????????????????? | | ??????????????????????? ???????????????????????? | | ??????????????????????? ???????????????????????? | | ?????????????????????????????????????????????????? | | ?????????????????????????????????????????????????? | | ?????????????????????????????????????????????????? | | ?????????????????????????????????????????????????? | | ?????????????????????????????????????????????????? | | ?????????????????????????????????????????????????? | | ?????????????????????????????????????????????????? | | ?????????????????????????????????????????????????? | | ?????????????????????????????????????????????????? | +----------------------------------------------------+ Best States ------------- Heat Dissipation 45 Coolant Potential 80 Energy Generation 25 Energy Capacity 340 Matter Stores 300 Matter Capacity 300 Sight Range 20 Robot Scan Range 20 Terrain Scan Density 10 Armor Coverage 450 Resistance: EM 15 Evasion (%) 40 Targeting Accuracy 5 Core Analysis 6 Recoil Reduction 4 Offensive Hacking 10 Relay Coupler Types 3 Relay Coupler Value 83 Authchip Count 1 Item Schematics ----------------- Cargo Storage Unit | -10/Materials | Hacked Robot Schematics ------------------ M-13 Machinist | -10/Materials | Hacked Fabricated ------------ Hvy. Plasma Cannon | x2 | -7/Factory | Preloaded R-06 Scavenger | x1 | -7/Factory | Preloaded Alien Tech Used ----------------- None Achievements -------------- None Challenges ------------ None Game ------ Seed LightningActuatorExoskeleton Manual? 0 Play Time 01:26:29 Cumulative 229.2 hours Start 2024.02.23 @ 07:37:56 End 2024.02.23 @ 09:38:35 Sessions 1 Manual Loads 0 Difficulty Rogue Special Mode None Game No. 170 Rogue 170 Adventurer 0 Explorer 0 Win Type - Total 8 Types 5/0/1/1/0/0/0/1/0 Lore% 69 Gallery% 76 Achievement% 66 Wizard Run 0 Options --------- ASCII 0 Keyboard 1 Movement Numpad Keybinds 0 Fullscreen 2 Font 18/SmallcapsGlow Map View 76x50 Tactical HUD 1 Map Filters NONE Filters NONE Steam 1 RUN: 78dcaf9a-f258-4e41-8d95-75e4ec99c1b5